bitfinex-derivatives/quotes_SOLF0:USTF0_20240905
["timestamp","ask_amount","ask_price","bid_price","bid_amount"]
[1725558371941,0.4381339,130.14,130.08,3.8441]
[1725558372238,3.8433,130.12,130.08,3.8441]
[1725558372440,1.4456,130.16,130.07,29.53]
[1725558372739,1.4456,130.16,130.1,0.05070093]
[1725558372740,0.87601779,130.15,130.1,0.05070093]
[1725558372940,4.28081323,130.14,130.11,3.8432]
[1725558373140,0.43800456,130.15,130.1,0.05070093]
[1725558373439,0.43789653,130.14,130.1,0.05070093]
[1725558373640,4.28049653,130.14,130.11,3.8433]
[1725558373841,3.8426,130.14,130.11,3.8433]
[1725558375237,1.4456,130.16,130.1,0.05070093]
[1725558375238,3.8429,130.13,130.1,3.89430093]
[1725558375630,3.8429,130.13,130.1,0.05070093]
[1725558375839,3.8427,130.14,130.11,3.8434]
[1725558376037,0.43792598,130.13,130.1,0.05070093]
[1725558376230,0.43792598,130.12,130.1,0.05070093]
[1725558376432,3.8433,130.12,130.1,0.05070093]
[1725558376634,1.4456,130.16,130.1,0.05070093]
[1725558376832,3.843,130.13,130.1,3.89430093]
[1725558377035,1.4456,130.16,130.1,0.05070093]
[1725558377243,0.43792359,130.15,130.1,0.05070093]
[1725558377443,4.28022359,130.15,130.12,3.843]
[1725558377745,3.8423,130.15,130.12,3.843]
[1725558378043,1.3545,130.18,130.12,3.81879866]
[1725558378235,1.3545,130.18,130.14,0.04886798]
[1725558378439,1.3082,130.2,130.14,0.04886798]
[1725558378640,3.8415,130.18,130.14,0.04886798]
[1725558379443,3.8412,130.19,130.14,0.04886798]
[1725558379945,3.8412,130.19,130.16,3.8419]
[1725558380245,3.8414,130.18,130.16,3.8419]
[1725558380436,1.3082,130.2,130.16,0.0568111]
[1725558380637,0.43749525,130.19,130.16,0.0568111]
[1725558381032,3.8417,130.17,130.16,0.0568111]
[1725558382349,3.8408,130.2,130.16,0.0568111]
[1725558382546,1.3562,130.24,130.16,29.5868111]
[1725558382742,0.43706231,130.23,130.19,0.05708108]
[1725558382960,1.3562,130.24,130.19,0.05708108]
[1725558383149,6.3924907,130.27,130.19,0.05708108]
[1725558383444,3.8398,130.24,130.22,0.05395895]
[1725558383645,3.8398,130.24,130.22,0.04878146]
[1725558384045,3.8394,130.25,130.22,0.04878146]
[1725558384248,0.43695153,130.24,130.22,0.04878146]
[1725558384444,3.8394,130.25,130.22,0.04878146]
[1725558384838,2.6425,130.27,130.22,0.04878146]
[1725558385043,0.43689957,130.26,130.22,0.04878146]
[1725558385438,3.8395,130.25,130.22,0.04878146]
[1725558385838,2.6425,130.27,130.22,3.88888146]
[1725558386044,4.27599689,130.26,130.22,3.88888146]
[1725558386236,2.6425,130.27,130.22,0.04878146]
[1725558386237,0.43689689,130.25,130.22,0.04878146]
[1725558386450,3.8395,130.25,130.22,0.04878146]
[1725558386650,2.6425,130.27,130.22,0.04878146]
[1725558386842,0.43689676,130.26,130.22,0.04878146]
[1725558387040,3.8395,130.25,130.22,3.88888146]
[1725558387443,2.6425,130.27,130.22,0.04878146]
[1725558387648,0.4368916,130.26,130.22,0.04878146]
[1725558388346,3.8399,130.23,130.22,0.04878146]
[1725558388739,2.6425,130.27,130.14,29.53]
[1725558388740,29.53,130.24,130.14,29.53]
[1725558388946,0.43711586,130.23,130.14,29.53]
[1725558389250,3.8412,130.19,130.14,29.53]
[1725558389444,3.8412,130.19,130.13,1.4385]
[1725558389644,0.05035284,130.17,130.15,3.842]
[1725558389846,0.05035284,130.17,130.15,3.8919633]
[1725558390355,0.05035284,130.17,130.15,0.0499633]
[1725558390558,3.842,130.16,130.15,0.0499633]
[1725558390946,0.05035284,130.17,130.15,0.0499633]
[1725558391153,0.05035284,130.17,130.15,3.8920633]
[1725558391354,0.05035284,130.17,130.15,7.67594967]
[1725558391651,0.05035284,130.17,130.15,0.0499633]
[1725558391849,0.05035284,130.17,130.16,3.842]
[1725558393353,0.05035284,130.17,130.15,3.8920633]
[1725558393655,0.05035284,130.17,130.15,0.0499633]
[1725558395344,0.05035284,130.17,130.15,3.8920633]
[1725558395949,0.05035284,130.17,130.15,0.0499633]
[1725558396154,0.05035284,130.17,130.16,3.842]
[1725558396657,3.8403,130.22,130.18,3.8411]
[1725558397055,3.8403,130.22,130.15,29.53]
[1725558397269,3.8403,130.22,130.18,3.8411]
[1725558397454,29.53,130.27,130.17,29.53]
[1725558397753,33.6105,130.28,130.21,3.89742305]
[1725558398054,3.8395,130.25,130.21,3.89742305]
[1725558398451,3.8395,130.25,130.22,3.8401]
[1725558399454,2.7347,130.28,130.21,29.58722305]
[1725558399854,3.8392,130.26,130.23,3.8397]
[1725558400153,2.7347,130.28,130.23,3.8397]
[1725558400154,2.7347,130.28,130.23,0.05354288]
[1725558400556,1.4421,130.31,130.23,29.58354288]
[1725558400758,0.43651937,130.3,130.26,0.05127403]
[1725558400956,3.8384,130.29,130.26,0.05127403]
[1725558402456,1.4421,130.31,130.26,0.05127403]
[1725558402658,1.3171,130.35,130.26,0.05127403]
[1725558402857,1.3171,130.35,130.25,29.53]
[1725558402858,0.43620958,130.34,130.29,0.05307759]
[1725558403854,3.8374,130.32,130.29,3.89117759]
[1725558404452,1.3171,130.35,130.29,0.05307759]
[1725558404762,0.43611637,130.34,130.29,0.05307759]
[1725558405057,3.8378,130.3,130.29,0.05307759]
[1725558405256,4.27391637,130.3,130.29,0.05307759]
[1725558405656,4.27411644,130.3,130.29,0.05307759]
[1725558405853,4.2740933,130.3,130.29,0.05307759]
[1725558407257,3.8378,130.3,130.29,0.05307759]
[1725558408154,1.3171,130.35,130.29,0.05307759]
[1725558408355,0.4361461,130.34,130.29,0.05307759]
[1725558408664,0.4361461,130.34,130.29,3.89117759]
[1725558409058,0.4361461,130.34,130.29,0.05307759]
[1725558409059,3.8375,130.32,130.29,0.05307759]
[1725558410461,3.8375,130.32,130.29,3.89117759]
[1725558411460,1.3171,130.35,130.29,0.05307759]
[1725558411661,0.4361303,130.34,130.29,0.05307759]
[1725558412559,3.8378,130.31,130.29,0.05307759]
[1725558414471,3.8378,130.3,130.29,0.05307759]
[1725558415162,3.8376,130.31,130.29,0.05307759]
[1725558416166,1.3171,130.35,130.29,0.05307759]
[1725558416366,0.43614537,130.34,130.29,0.05307759]
[1725558417377,0.43614537,130.34,130.12,228.77313594]
[1725558417378,29.53,130.27,130.13,33.5746]
[1725558417670,29.53,130.24,130.13,33.5746]
[1725558417865,29.53,130.24,130.13,37.50159838]
[1725558418271,0.05233444,130.2,130.17,0.05736524]
[1725558418472,3.8414,130.18,130.17,0.05736524]
[1725558419671,0.43729933,130.18,130.1,3.91586286]
[1725558419871,0.43729933,130.18,130.09,2.7035]
[1725558420077,3.8431,130.13,130.09,2.7035]
[1725558420277,1.3211,130.19,130.09,2.7035]
[1725558420468,30.8511,130.19,130.09,36.0952212]
[1725558420673,0.05779838,130.15,130.13,0.05325361]
[1725558420978,3.8425,130.14,130.13,0.05325361]
[1725558421373,0.05779838,130.15,130.13,0.05325361]
[1725558421374,3.90009838,130.15,130.13,0.05325361]
[1725558421675,0.05779838,130.15,130.13,0.05325361]
[1725558421977,3.8425,130.14,130.13,0.05325361]
[1725558422570,0.05779838,130.15,130.13,0.05325361]
[1725558424385,0.05779838,130.15,130.14,3.8425]
[1725558424687,1.3157,130.23,130.13,29.58325361]
[1725558424983,3.8393,130.25,130.21,3.8403]
[1725558425176,2.6534,130.27,130.19,3.90154116]
[1725558425384,0.43690661,130.26,130.19,29.53]
[1725558425589,0.05264445,130.24,130.21,0.05488183]
[1725558426287,0.05264445,130.24,130.21,29.58488183]
[1725558426489,0.43666558,130.3,130.23,29.53]
[1725558426690,29.53,130.35,130.26,29.53]
[1725558426988,230.672,130.38,130.26,29.53]
[1725558426989,0.43631765,130.34,130.26,29.53]
[1725558427186,0.43631765,130.33,130.26,29.53]
[1725558427392,5.27567543,130.37,130.26,29.53]
[1725558427592,0.43613863,130.36,130.3,0.05806838]
[1725558427987,3.8371,130.33,130.3,0.05806838]
[1725558429582,29.53,130.36,130.3,0.05806838]
[1725558429791,0.43624657,130.35,130.3,0.05806838]
[1725558429986,3.8375,130.31,130.3,0.05806838]
[1725558430993,3.8386,130.28,130.21,1.3791]
[1725558431188,3.8386,130.28,130.24,3.8394]
[1725558432015,29.53,130.32,130.21,30.9091]
[1725558432196,0.0546303,130.27,130.25,0.05687583]
[1725558432493,3.89696838,130.27,130.25,0.05687583]
[1725558433094,3.839,130.26,130.25,0.05687583]
[1725558433400,0.05806838,130.27,130.25,0.05687583]
[1725558434293,3.839,130.26,130.25,0.05687583]
[1725558434603,0.05806838,130.27,130.25,0.05687583]
[1725558436201,0.49477758,130.27,130.25,0.05687583]
[1725558436387,0.05806838,130.27,130.25,0.05687583]
[1725558436697,3.839,130.26,130.25,0.05687583]
[1725558436892,4.27575358,130.26,130.25,0.05687583]
[1725558437796,0.05806838,130.27,130.25,0.05687583]
[1725558438691,3.839,130.26,130.25,0.05687583]
[1725558439090,0.05806838,130.27,130.25,0.05687583]
[1725558439298,3.89686838,130.27,130.25,0.05687583]
[1725558439496,0.05806838,130.27,130.25,0.05687583]
[1725558440213,0.05806838,130.27,130.26,3.839]
[1725558440896,0.43626083,130.33,130.28,3.8383]
[1725558441094,0.43626083,130.32,130.26,29.53]
[1725558441289,3.8374,130.32,130.28,3.8381]
[1725558441500,1.369,130.35,130.29,3.8873579]
[1725558441698,29.53,130.3,130.2,4.191]
[1725558441896,32.78591641,130.29,130.24,0.05498318]
[1725558442199,0.43691419,130.28,130.25,0.05710356]
[1725558442393,3.8387,130.27,130.25,0.05710356]
[1725558442594,0.43691419,130.26,130.25,0.05710356]
[1725558442790,0.43691419,130.28,130.25,0.05710356]
[1725558443099,18.70095263,130.38,130.25,0.05710356]
[1725558443297,0.43653013,130.33,130.28,0.05765445]
[1725558443799,3.8383,130.29,130.28,0.05765445]
[1725558444002,4.27483013,130.29,130.28,0.05765445]
[1725558444301,3.8383,130.29,130.28,0.05765445]
[1725558444798,3.8401,130.23,130.21,3.77062965]
[1725558445695,3.8402,130.22,130.21,0.05671881]
[1725558450001,3.89765445,130.23,130.21,0.05671881]
[1725558450412,0.05765445,130.23,130.21,0.05671881]
[1725558450602,0.05765445,130.23,130.21,3.89701881]
[1725558451507,0.05765445,130.23,130.21,0.05671881]
[1725558452007,3.89765445,130.23,130.21,0.05671881]
[1725558452510,0.05765445,130.23,130.21,3.89701881]
[1725558452707,7.6723,130.36,130.21,29.58671881]
[1725558452912,7.6723,130.36,130.19,5.36750468]
[1725558452913,0.43639209,130.32,130.25,3.8391]
[1725558453410,3.8383,130.29,130.25,3.8391]
[1725558453808,1.387,130.33,130.26,0.05426682]
[1725558454003,0.43632857,130.32,130.26,0.05426682]
[1725558454519,3.838,130.3,130.26,0.05426682]
[1725558454907,2.8142,130.34,130.26,33.42211849]
[1725558455113,3.8375,130.32,130.29,0.05124014]
[1725558455607,2.8142,130.34,130.29,0.05124014]
[1725558455809,3.8373,130.32,130.29,0.05124014]
[1725558456009,2.8142,130.34,130.29,0.05124014]
[1725558456211,0.43630666,130.33,130.29,0.05124014]
[1725558456414,3.8373,130.32,130.29,0.05124014]
[1725558456610,30.917,130.37,130.29,0.05124014]
[1725558456815,0.43618373,130.36,130.32,0.05403377]
[1725558457117,3.8371,130.33,130.32,0.05403377]
[1725558457317,4.27328373,130.33,130.32,0.05403377]
[1725558457816,4.27328323,130.33,130.32,0.05403377]
[1725558458012,0.43618323,130.33,130.32,0.05403377]
[1725558458204,3.8365,130.35,130.32,0.05403377]
[1725558458411,0.43610013,130.34,130.32,0.05403377]
[1725558458812,3.8365,130.35,130.32,0.05403377]
[1725558459010,0.43609391,130.34,130.32,0.05403377]
[1725558459620,3.8365,130.35,130.32,0.05403377]
[1725558461020,1.387,130.37,130.32,0.05403377]
[1725558461322,0.43602839,130.36,130.32,0.05403377]
[1725558461519,3.8366,130.35,130.32,0.05403377]
[1725558461718,1.387,130.37,130.32,0.05403377]
[1725558461924,0.43597632,130.36,130.32,0.05403377]
[1725558462115,4.27217632,130.36,130.32,3.89103377]
[1725558462324,3.8362,130.36,130.32,3.89103377]
[1725558462518,3.8362,130.36,130.32,0.05403377]
[1725558463423,29.53,130.38,130.32,0.05403377]
[1725558463629,0.43596749,130.37,130.32,0.05403377]
[1725558464023,3.8369,130.33,130.32,0.05403377]
[1725558464925,29.53,130.38,130.32,0.05403377]
[1725558465125,4.0834,130.41,130.32,0.05403377]
[1725558465126,0.43605633,130.37,130.32,0.05403377]
[1725558465321,3.8356,130.38,130.34,3.8365]
[1725558465526,0.43579185,130.37,130.35,0.05196262]
[1725558465822,0.43579185,130.37,130.36,3.8361]
[1725558466024,10.66345774,130.47,130.35,29.58196262]
[1725558466025,2.8394,130.45,130.35,29.58196262]
[1725558466222,0.43533883,130.44,130.4,29.53]
[1725558466423,1.3136,130.48,130.41,0.0488819]
[1725558466730,0.43501089,130.47,130.42,29.53]
[1725558466917,0.43470641,130.46,130.43,0.05600113]
[1725558467230,1.4394,130.5,130.43,0.05600113]
[1725558467425,0.43459969,130.49,130.43,0.05600113]
[1725558468125,0.43459969,130.49,130.44,3.8335]
[1725558468318,0.43459969,130.49,130.43,0.05600113]
[1725558468520,1.4,130.54,130.46,29.53]
[1725558468722,4.2657626,130.53,130.47,3.8326]
[1725558468932,0.4344626,130.52,130.49,0.0543813]
[1725558469129,0.4344626,130.51,130.49,0.0543813]
[1725558469435,1.4,130.54,130.49,0.0543813]
[1725558469436,0.4344626,130.5,130.49,0.0543813]
[1725558469927,0.4344626,130.53,130.49,0.0543813]
[1725558470117,0.4344626,130.52,130.49,0.0543813]
[1725558470321,0.4344626,130.51,130.49,0.0543813]
[1725558470520,0.4344626,130.5,130.49,0.0543813]
[1725558470721,0.43434056,130.5,130.49,0.0543813]
[1725558470928,0.43434056,130.52,130.49,0.0543813]
[1725558471227,0.43434056,130.51,130.49,0.0543813]
[1725558471423,0.43434056,130.5,130.49,0.0543813]
[1725558471618,0.43434056,130.52,130.49,0.0543813]
[1725558471817,0.43434085,130.51,130.49,0.0543813]
[1725558472421,0.43434549,130.5,130.49,0.0543813]
[1725558472623,0.43448438,130.5,130.42,1.3867]
[1725558472832,4.26698438,130.49,130.44,3.8335]
[1725558473130,3.8325,130.49,130.44,3.8335]
[1725558473321,3.8325,130.49,130.42,1.3867]
[1725558473322,0.43450247,130.48,130.45,3.8334]
[1725558473521,3.8325,130.49,130.45,3.8334]
[1725558473726,0.05281649,130.48,130.46,0.04925213]
[1725558474623,0.05281649,130.48,130.46,29.57925213]
[1725558475324,0.05281649,130.48,130.47,3.8328]
[1725558476136,0.43438355,130.52,130.49,3.8321]
[1725558476423,0.43436832,130.51,130.49,3.8321]
[1725558476631,3.8315,130.52,130.48,3.8324]
[1725558476926,0.43438651,130.51,130.42,30.9167]
[1725558477126,0.43438651,130.5,130.42,30.9167]
[1725558477435,29.53,130.52,130.45,0.05869458]
[1725558477626,0.43451987,130.51,130.45,0.05869458]
[1725558478327,3.8327,130.48,130.45,0.05869458]
[1725558479235,3.8331,130.46,130.45,0.05869458]
[1725558479533,3.76656866,130.49,130.44,0.05447188]
[1725558479733,0.43473184,130.48,130.44,0.05447188]
[1725558479928,29.53,130.52,130.45,0.05551673]
[1725558480131,3.8327,130.48,130.45,0.05551673]
[1725558480332,3.7500789,130.49,130.45,0.05551673]
[1725558480556,0.43470213,130.48,130.46,0.0582236]
[1725558480731,29.53,130.5,130.46,0.0582236]
[1725558480931,3.8328,130.47,130.46,0.0582236]
[1725558482233,29.53,130.48,130.38,33.4194962]
[1725558482425,29.53,130.44,130.35,2.7306]
[1725558482627,3.8355,130.38,130.32,29.53]
[1725558482824,29.53,130.4,130.32,3.837]
[1725558483035,29.53,130.4,130.29,32.1716]
[1725558483036,1.3465,130.39,130.29,5.19953412]
[1725558483229,3.8366,130.34,130.33,0.05003011]
[1725558483649,33.38421036,130.35,130.26,3.8020487]
[1725558483833,29.53,130.35,130.26,3.8020487]
[1725558484034,35.41,130.36,130.27,3.8385]
[1725558484237,0.43599812,130.35,130.26,3.8020487]
[1725558484530,3.88924545,130.32,130.28,3.8383]
[1725558484731,0.05184545,130.32,130.29,0.05727042]
[1725558485835,0.05184545,130.32,130.31,3.8375]
[1725558486733,1.3465,130.39,130.31,35.41]
[1725558487034,3.8346,130.41,130.33,35.41]
[1725558487331,1.4171,130.43,130.38,3.8354]
[1725558487531,1.4171,130.43,130.34,1.395]
[1725558487532,3.8345,130.42,130.34,1.395]
[1725558487837,1.4171,130.43,130.39,3.835]
[1725558488137,0.05145513,130.42,130.4,0.05394986]
[1725558489226,0.05145513,130.42,130.4,3.88874986]
[1725558489434,0.05145513,130.42,130.4,0.05394986]
[1725558489628,0.05145513,130.42,130.4,3.88874986]
[1725558490031,0.05145513,130.42,130.4,0.05394986]
[1725558490240,0.48664489,130.42,130.4,0.05394986]
[1725558490437,0.43518976,130.41,130.4,0.05394986]
[1725558490832,0.48664489,130.42,130.4,0.05394986]
[1725558491139,4.26978976,130.41,130.4,0.05394986]
[1725558491340,0.43518976,130.41,130.4,0.05394986]
[1725558491642,0.05145513,130.42,130.4,0.05394986]
[1725558492335,3.8346,130.41,130.4,0.05394986]
[1725558492530,0.43518976,130.41,130.34,1.395]
[1725558492730,0.43518976,130.4,130.34,1.395]
[1725558492930,0.43518976,130.39,130.35,3.8362]
[1725558493238,39.20055466,130.41,130.3,36.7526]
[1725558493541,0.05598407,130.37,130.34,0.04868233]
[1725558496939,0.43567169,130.38,130.27,1.3926]
[1725558497246,35.41,130.36,130.27,1.3926]
[1725558497459,3.8374,130.32,130.27,5.2313]
[1725558498146,1.3127,130.35,130.28,0.05766072]
[1725558498147,0.05630681,130.31,130.28,0.05766072]
[1725558499345,0.05630681,130.31,130.29,3.8379]
[1725558500140,0.05630681,130.31,130.28,3.89596072]
[1725558500941,0.05630681,130.31,130.28,35.46766072]
[1725558501138,1.4363,130.39,130.26,3.88825431]
[1725558501139,0.43572859,130.38,130.3,35.41]
[1725558501649,0.43572859,130.38,130.32,3.837]
[1725558502147,3.8362,130.36,130.32,3.837]
[1725558502344,0.05225566,130.35,130.33,0.05757281]
[1725558502742,0.05225566,130.35,130.33,3.89437281]
[1725558504345,0.05225566,130.35,130.34,3.8366]
[1725558504950,36.7725,130.43,130.33,0.05757281]
[1725558505144,36.7725,130.43,130.31,2.7172]
[1725558505145,3.8358,130.38,130.31,2.7172]
[1725558505349,3.76629416,130.41,130.33,3.8366]
[1725558505541,3.76629416,130.41,130.31,2.7172]
[1725558505542,0.43548021,130.4,130.31,2.7172]
[1725558505944,0.05047798,130.37,130.34,0.05870233]
[1725558506139,3.8361,130.36,130.34,0.05870233]
[1725558506359,0.05047798,130.37,130.34,0.05870233]
[1725558506742,3.8364,130.35,130.34,0.05870233]
[1725558508248,0.05047798,130.37,130.34,0.05870233]
[1725558508249,3.8362,130.36,130.34,0.05870233]
[1725558511756,3.8364,130.35,130.34,0.05870233]
[1725558512349,0.05047798,130.37,130.34,0.05870233]
[1725558512951,0.05047798,130.37,130.35,3.8362]
[1725558513354,0.05047798,130.37,130.34,0.05870233]
[1725558513548,0.05047798,130.37,130.36,3.8361]
[1725558514160,0.05047798,130.37,130.35,3.8362]
[1725558514560,0.05047798,130.37,130.34,29.54870233]
[1725558515853,0.05047798,130.37,130.35,5.29198206]
[1725558516055,0.05047798,130.37,130.36,3.8361]
[1725558521266,1.3996,130.47,130.44,3.8335]
[1725558521457,0.40132734,130.46,130.42,29.49]
[1725558522175,0.40132734,130.46,130.43,0.05654439]
[1725558522464,3.8336,130.45,130.43,0.05678438]
[1725558522662,0.40132734,130.44,130.43,0.05678438]
[1725558524263,4.23502734,130.44,130.43,0.05678438]
[1725558524468,4.23502734,130.44,130.38,29.49]
[1725558524469,0.40132734,130.44,130.38,29.49]
[1725558524668,3.8344,130.42,130.38,29.49]
[1725558524962,3.8344,130.42,130.38,33.3254]
[1725558525362,1.3996,130.47,130.39,0.05407612]
[1725558525363,0.05206682,130.41,130.39,0.05407612]
[1725558525570,0.05678438,130.41,130.39,0.04874086]
[1725558526464,0.05678438,130.41,130.39,3.88394086]
[1725558527665,0.05678438,130.41,130.39,0.04874086]
[1725558528064,3.8349,130.4,130.39,0.04874086]
[1725558534977,4.23645988,130.4,130.39,0.04874086]
[1725558535180,4.23645988,130.4,130.29,1.3541]
[1725558535181,29.89155988,130.4,130.29,1.3541]
[1725558535489,29.49,130.38,130.28,2.7421]
[1725558535687,0.40155988,130.37,130.3,3.8377]
[1725558535892,3.8368,130.34,130.3,3.8377]
[1725558536385,0.04889356,130.33,130.31,0.05517053]
[1725558537791,3.88599356,130.33,130.31,0.05517053]
[1725558537988,0.04889356,130.33,130.31,0.05517053]
[1725558539093,0.04889356,130.33,130.32,3.8372]
[1725558540588,3.8359,130.37,130.32,29.49]
[1725558540795,3.8359,130.37,130.34,29.49]
[1725558541597,3.8359,130.37,130.35,3.8362]
[1725558541598,0.05199051,130.37,130.35,3.8362]
[1725558542299,0.05199051,130.37,130.36,3.8361]
[1725558543493,0.05199051,130.37,130.36,33.3261]
[1725558544501,3.8349,130.4,130.38,3.8353]
[1725558545390,0.40171678,130.39,130.38,3.8353]
[1725558546194,3.8349,130.4,130.38,3.8353]
[1725558546394,0.40171708,130.39,130.38,3.8353]
[1725558546601,0.40171708,130.39,130.38,29.49]
[1725558546801,1.4151,130.47,130.41,0.0569295]
[1725558546997,1.4151,130.47,130.43,0.04964173]
[1725558546998,0.40159441,130.46,130.43,0.04964173]
[1725558547301,3.8339,130.44,130.43,0.04964173]
[1725558547604,4.23549441,130.44,130.43,0.04964173]
[1725558549096,0.40159441,130.44,130.43,0.04964173]
[1725558549698,0.40159441,130.44,130.43,3.88344173]
[1725558549899,0.40159441,130.46,130.43,0.04964173]
[1725558550105,0.40159441,130.45,130.43,0.04964173]
[1725558550301,3.93082715,130.5,130.44,3.8337]
[1725558550502,0.37026726,130.49,130.46,0.05302317]
[1725558550703,4.20296726,130.48,130.46,0.05302317]
[1725558550902,0.37026726,130.47,130.46,0.05302317]
[1725558552699,0.37026726,130.49,130.46,0.05302317]
[1725558552902,0.37026726,130.48,130.46,0.05302317]
[1725558553201,0.37026726,130.47,130.46,0.05302317]
[1725558553399,0.37001264,130.47,130.46,0.05302317]
[1725558553609,4.20281264,130.47,130.46,0.05302317]
[1725558554304,3.8328,130.47,130.46,0.05302317]
[1725558554801,3.80500866,130.5,130.46,0.05302317]
[1725558555100,0.36992203,130.49,130.46,0.05302317]
[1725558555300,3.87594755,130.5,130.46,0.05302317]
[1725558555505,0.36984698,130.49,130.46,0.05302317]
[1725558555710,3.8327,130.48,130.46,0.05302317]
[1725558557710,40.15345774,130.59,130.46,29.54302317]
[1725558557915,1.3227,130.57,130.51,0.05806753]
[1725558558105,0.36979947,130.56,130.53,0.05418945]
[1725558558807,3.8308,130.54,130.53,0.05418945]
[1725558559105,4.20059947,130.54,130.53,0.05418945]
[1725558560503,4.20024258,130.54,130.53,0.05418945]
[1725558566504,3.8314,130.52,130.49,3.8321]
[1725558567505,3.88366546,130.52,130.49,3.88187094]
[1725558568202,3.88366546,130.52,130.5,3.8319]
[1725558568203,0.05226546,130.52,130.5,3.8319]
[1725558568401,0.42182997,130.52,130.5,3.8319]
[1725558569511,0.05226546,130.52,130.5,3.8319]
[1725558569711,0.42181476,130.52,130.5,3.8319]
[1725558570113,0.05226546,130.52,130.5,3.8319]
[1725558571102,30.7279,130.61,130.5,3.8319]
[1725558571103,16.37478671,130.64,130.51,29.49]
[1725558571303,0.36937238,130.63,130.55,29.49]
[1725558571607,0.36937238,130.62,130.6,3.8288]
[1725558571807,0.36937238,130.61,130.57,29.49]
[1725558572008,6.53882498,130.67,130.58,3.74490815]
[1725558572211,0.36864522,130.66,130.61,0.05661161]
[1725558572811,3.8277,130.65,130.61,3.88521161]
[1725558573110,0.36864522,130.64,130.61,0.05661161]
[1725558573319,3.75716644,130.68,130.62,29.49]
[1725558573511,0.36830055,130.67,130.64,0.05325345]
[1725558573719,8.06967194,130.66,130.64,0.05897134]
[1725558574016,0.36836865,130.65,130.64,0.05897134]
[1725558575014,3.8275,130.65,130.64,0.05897134]
[1725558575214,4.19586865,130.65,130.64,0.05897134]
[1725558575717,4.19591863,130.65,130.64,0.05897134]
[1725558577418,3.829,130.6,130.58,29.49]
[1725558577720,1.3458,130.64,130.56,33.28383565]
[1725558577917,1.3458,130.64,130.56,29.49]
[1725558578115,0.36854524,130.63,130.56,29.49]
[1725558578413,3.88310177,130.61,130.58,0.04892503]
[1725558578812,0.05420177,130.61,130.6,29.49]
[1725558579058,0.05420177,130.61,130.6,33.319]
[1725558580913,0.05420177,130.61,130.6,29.49]
[1725558581719,0.05420177,130.61,130.58,33.36832503]
[1725558582509,3.88300177,130.61,130.58,33.36832503]
[1725558583313,3.8291,130.6,130.58,33.36832503]
[1725558583615,3.8291,130.6,130.58,29.53892503]
[1725558584215,3.88300177,130.61,130.58,33.36852503]
[1725558584821,0.05420177,130.61,130.59,3.8291]
[1725558585825,29.49,130.69,130.58,29.53892503]
[1725558585826,2.7458,130.7,130.6,29.49]
[1725558586010,4.20169179,130.69,130.63,29.49]
[1725558586214,3.8274,130.66,130.63,33.318]
[1725558586410,1.3302,130.73,130.65,29.49]
[1725558586623,1.3302,130.73,130.68,0.05428985]
[1725558586624,3.8264,130.69,130.68,0.05428985]
[1725558586819,4.19451825,130.69,130.68,0.05428985]
[1725558590619,4.19449691,130.69,130.68,0.05428985]
[1725558592526,4.19445371,130.69,130.68,0.05428985]
[1725558594528,3.8274,130.66,130.62,5.2045]
[1725558594729,0.36805371,130.65,130.61,29.49]
[1725558595025,0.36805371,130.64,130.61,3.8285]
[1725558595225,0.36832795,130.63,130.58,32.2538]
[1725558595429,0.36835114,130.62,130.58,32.2538]
[1725558595624,0.0532699,130.62,130.6,3.8289]
[1725558597632,0.0532699,130.62,130.61,3.8287]
[1725558597822,0.0532699,130.62,130.61,33.3187]
[1725558598638,7.6518,130.71,130.61,29.49]
[1725558598639,3.8277,130.65,130.61,29.49]
[1725558599132,7.6518,130.71,130.61,29.49]
[1725558599330,0.36815687,130.7,130.64,3.8276]
[1725558599536,7.6518,130.71,130.61,29.49]
[1725558599725,3.8274,130.66,130.65,0.0573915]
[1725558599924,4.19559363,130.66,130.65,0.0573915]
[1725558600730,0.36819363,130.66,130.65,0.0573915]
[1725558601234,4.19539363,130.66,130.65,0.0573915]
[1725558601436,0.36819363,130.66,130.65,0.0573915]
[1725558602337,4.19539363,130.66,130.65,0.0573915]
[1725558602947,7.94106948,130.66,130.65,0.0573915]
[1725558603244,4.19539363,130.66,130.65,0.0573915]
[1725558603448,8.10688869,130.66,130.65,0.0573915]
[1725558603745,4.1954449,130.66,130.65,0.0573915]
[1725558604142,3.8272,130.66,130.65,0.0573915]